fUST/lending_fUST_20241204
["ID","MTS","AMOUNT","RATE_DAILY","PERIOD"]
[344250446,1733319043413,-500.0,0.00024931,7]
[344250447,1733319043424,-500.0,0.00024931,7]
[344250448,1733319043434,-500.0,0.00024931,7]
[344250449,1733319043443,-500.0,0.00024931,7]
[344250451,1733319043454,-795.54,0.00024931,7]
[344250453,1733319043469,-534.89,0.00024931,7]
[344250454,1733319043479,-500.0,0.00024931,7]
[344250455,1733319043489,-515.15858273,0.00024931,7]
[344250456,1733319043499,-500.0,0.00024931,7]
[344250457,1733319043508,-500.0,0.00024931,7]
[344250458,1733319043518,-500.0,0.00024931,7]
[344250460,1733319043528,-500.0,0.00024931,7]
[344250461,1733319043538,-500.0,0.00024931,7]
[344250462,1733319043547,-500.0,0.00024931,7]
[344250463,1733319043557,-500.0,0.00024931,7]
[344250464,1733319043567,-500.0,0.00024931,7]
[344250465,1733319043577,-500.0,0.00024931,7]
[344250466,1733319043586,-198.37518768,0.00024931,7]
[344250467,1733319043596,-500.0,0.00024931,7]
[344250468,1733319043606,-500.0,0.00024931,7]
[344250469,1733319043615,-511.77484622,0.00024931,7]
[344250470,1733319043625,-227.506211,0.00024931,7]
[344250471,1733319043635,-227.506211,0.00024931,7]
[344250472,1733319043644,-500.0,0.00024931,7]
[344250473,1733319043654,-227.506211,0.00024931,7]
[344250475,1733319043664,-227.506211,0.00024931,7]
[344250476,1733319043674,-500.0,0.00024931,7]
[344250477,1733319043684,-500.0,0.00024931,7]
[344250478,1733319043694,-500.0,0.00024931,7]
[344250479,1733319043703,-504.12454592,0.00024931,7]
[344250480,1733319043716,-500.0,0.00024931,7]
[344250481,1733319043726,-151.0,0.00024931,7]
[344250482,1733319043736,-500.0,0.00024931,7]
[344250483,1733319043746,-151.0,0.00024931,7]
[344250484,1733319043756,-508.81198577,0.00024931,7]
[344250485,1733319043766,-500.0,0.00024931,7]
[344250486,1733319043775,-500.0,0.00024931,7]
[344250487,1733319043785,-269.750471,0.00024931,7]
[344250488,1733319043800,-500.0,0.00024931,7]
[344250489,1733319043810,-500.0,0.00024931,7]
[344250490,1733319043820,-269.750471,0.00024931,7]
[344250491,1733319043829,-500.0,0.00024931,7]
[344250492,1733319043839,-500.0,0.00024931,7]
[344250493,1733319043850,-500.0,0.00024931,7]
[344250494,1733319043860,-151.0,0.00024931,7]
[344250495,1733319043870,-500.0,0.00024931,7]
[344250496,1733319043881,-334.06453687,0.00024931,7]
[344250497,1733319043891,-500.0,0.00024931,7]
[344250498,1733319043901,-500.0,0.00024931,7]
[344250499,1733319043911,-500.0,0.00024931,7]
[344250500,1733319043921,-500.0,0.00024931,7]
[344250501,1733319043931,-500.0,0.00024931,7]
[344250502,1733319043941,-620.51354734,0.00024931,7]
[344250503,1733319043950,-526.72564624,0.00024931,7]
[344250504,1733319043963,-858.86,0.00024931,7]
[344250505,1733319043973,-500.0,0.00024931,7]
[344250506,1733319043984,-500.0,0.00024931,7]
[344250507,1733319043994,-500.0,0.00024931,7]
[344250508,1733319044004,-500.0,0.00024931,7]
[344250509,1733319044013,-500.0,0.00024931,7]
[344250510,1733319044023,-594.96118733,0.00024931,7]
[344250511,1733319044037,-1742.20881267,0.00024931,7]
[344250512,1733319044047,-643.49454418,0.00024931,7]
[344250513,1733319044057,-609.36472656,0.00024931,7]
[344250514,1733319044068,-500.0,0.00024931,7]
[344250515,1733319044078,-548.49558623,0.00024931,7]
[344250516,1733319044088,-500.0,0.00024931,7]
[344250517,1733319044098,-245.38633036,0.00024931,7]
[344250518,1733319044111,-329.92066401,0.00024931,7]
[344250519,1733319044122,-500.0,0.00024931,7]
[344250520,1733319044132,-515.34704842,0.00024931,7]
[344250521,1733319044142,-500.0,0.00024931,7]
[344250522,1733319044152,-500.0,0.00024931,7]
[344250523,1733319044161,-235.73221499,0.00024931,7]
[344250524,1733319044346,-467.67778501,0.00024931,7]
[344250525,1733319044356,-169.070178,0.00024931,7]
[344250526,1733319044367,-601.47417593,0.00024931,7]
[344250527,1733319044377,-506.95723704,0.00024931,7]
[344250528,1733319044390,-500.0,0.00024931,7]
[344250529,1733319044402,-639.58,0.00024931,7]
[344250530,1733319044412,-61.98534167,0.00024931,7]
[344250531,1733319044429,-258.70817245,0.00024931,7]
[344250532,1733319044441,-116.09976777,0.00024931,7]
[344250533,1733319044499,-383.90023223,0.00024931,7]
[344250534,1733319044509,-500.0,0.00024931,7]
[344250535,1733319044518,-500.0,0.00024931,7]
[344250536,1733319044528,-500.0,0.00024931,7]
[344250537,1733319044538,-500.0,0.00024931,7]
[344250538,1733319044548,-500.0,0.00024931,7]
[344250539,1733319044558,-503.53109369,0.00024931,7]
[344250540,1733319044568,-500.0,0.00024931,7]
[344250541,1733319044578,-500.0,0.00024931,7]
[344250542,1733319044587,-559.90105403,0.00024931,7]
[344250543,1733319044597,-500.0,0.00024931,7]
[344250544,1733319044607,-500.0,0.00024931,7]
[344250545,1733319044617,-151.0,0.00024931,7]
[344250546,1733319044627,-500.0,0.00024931,7]
[344250547,1733319044637,-512.21593436,0.00024931,7]
[344250548,1733319044647,-500.0,0.00024931,7]
[344250549,1733319044657,-500.0,0.00024931,7]
[344250550,1733319044666,-500.0,0.00024931,7]
[344250551,1733319044676,-501.953268,0.00024931,7]
[344250552,1733319044687,-500.0,0.00024931,7]
[344250553,1733319044698,-500.0,0.00024931,7]
[344250554,1733319044712,-500.0,0.00024931,7]
[344250555,1733319044721,-505.07481684,0.00024931,7]
[344250556,1733319044730,-500.0,0.00024931,2]
[344250557,1733319044740,-500.0,0.00024931,7]
[344250558,1733319044750,-500.0,0.00024931,7]
[344250559,1733319044759,-500.0,0.00024931,7]
[344250560,1733319044768,-338.25631128,0.00024931,7]
[344250561,1733319044778,-500.0,0.00024931,7]
[344250562,1733319044787,-500.0,0.00024931,7]
[344250563,1733319044797,-500.0,0.00024931,7]
[344250564,1733319044807,-500.0,0.00024931,7]
[344250565,1733319044818,-500.0,0.00024931,2]
[344250566,1733319044827,-500.0,0.00024931,7]
[344250567,1733319044838,-500.0,0.00024931,7]
[344250568,1733319044847,-596.82062528,0.00024931,7]
[344250569,1733319044857,-500.0,0.00024931,7]
[344250570,1733319044866,-500.0,0.00024931,7]
[344250571,1733319044875,-500.0,0.00024973,2]
[344250572,1733319044885,-421.34491195,0.00024973,2]
[344250573,1733319044896,-500.0,0.00024973,2]
[344250574,1733319044905,-350.53306834,0.00024973,2]
[344250594,1733319080521,-572.13,0.0002661,30]
[344250602,1733319586180,167.539871,0.00013973,2]
[344250623,1733320172526,162.529973,0.00013973,2]
[344250664,1733320237090,-169.892531,0.0002295,2]
[344250666,1733320237100,-177.452363,0.00023167,2]
[344250668,1733320237110,-36.52875543,0.00023206,2]
[344250670,1733320237123,-263.47124457,0.00023206,2]
[344250672,1733320237133,-300.0,0.00023206,2]
[344250674,1733320237144,-1342.25046471,0.00023207,2]
[344250677,1733320237155,-1440.4322895,0.00023207,2]
[344250679,1733320237167,-859.995,0.00023207,2]
[344250729,1733320238661,-7970.69468142,0.00023207,2]
[344250941,1733320240792,-0.0003,0.00023207,2]
[344251226,1733320243871,-13286.62726437,0.00023207,2]
[344251228,1733320243881,-250.0,0.00023252,2]
[344251230,1733320243892,-208.242734,0.00023562,2]
[344251232,1733320243902,-788.35945897,0.00024556,2]
[344251234,1733320243913,-3379.35517241,0.00024556,2]
[344251236,1733320243923,-500.0,0.00024656,2]
[344251238,1733320243932,-470.18388319,0.00024656,2]
[344251240,1733320243941,-500.0,0.00024656,2]
[344251242,1733320243951,-500.0,0.00024656,2]
[344251244,1733320243960,-500.0,0.00024656,2]
[344251246,1733320243970,-500.0,0.00024656,2]
[344251249,1733320243979,-500.0,0.00024656,2]
[344251252,1733320243989,-500.0,0.00024656,2]
[344251254,1733320244006,-500.0,0.00024656,2]
[344251256,1733320244016,-500.0,0.00024656,2]
[344251258,1733320244026,-500.0,0.00024656,2]
[344251260,1733320244038,-500.0,0.00024656,2]
[344251262,1733320244048,-500.0,0.00024656,2]
[344251264,1733320244058,-500.0,0.00024656,2]
[344251266,1733320244069,-500.0,0.00024656,2]
[344251268,1733320244078,-500.0,0.00024656,2]
[344251270,1733320244088,-583.78230359,0.00024656,2]
[344251272,1733320244098,-500.0,0.00024656,2]
[344251274,1733320244108,-500.0,0.00024656,2]
[344251276,1733320244118,-151.0,0.00024657,7]
[344251278,1733320244128,-250.703314,0.00024657,7]
[344251280,1733320244138,-250.703314,0.00024657,7]
[344251282,1733320244148,-500.0,0.00024657,7]
[344251284,1733320244157,-511.96231774,0.00024657,7]
[344251286,1733320244167,-500.0,0.00024657,7]
[344251288,1733320244177,-500.0,0.00024657,7]
[344251290,1733320244187,-518.36606876,0.00024657,7]
[344251292,1733320244196,-500.0,0.00024657,7]
[344251294,1733320244205,-500.0,0.00024657,7]
[344251296,1733320244216,-353.26831105,0.00024657,7]
[344251298,1733320244225,-482.3011637,0.00024657,7]
[344251300,1733320244235,-500.0,0.00024657,7]
[344251302,1733320244244,-500.0,0.00024657,7]
[344251303,1733320244254,-500.0,0.00024657,7]
[344251305,1733320244264,-503.56149404,0.00024657,7]
[344251307,1733320244274,-500.0,0.00024657,7]
[344251309,1733320244288,-500.0,0.00024657,7]
[344251312,1733320244299,-500.0,0.00024657,7]
[344251313,1733320244308,-500.0,0.00024657,7]
[344251315,1733320244318,-500.0,0.00024657,7]
[344251318,1733320244329,-550.87598257,0.00024657,7]
[344251320,1733320244339,-200.0,0.00024657,7]
[344251321,1733320244350,-502.69761165,0.00024657,7]
[344251323,1733320244360,-509.37579941,0.00024657,7]
[344251326,1733320244370,-500.0,0.00024657,7]
[344251327,1733320244380,-500.0,0.00024657,7]
[344251330,1733320244390,-500.0,0.00024657,7]
[344251331,1733320244401,-295.28972792,0.00024657,7]
[344251333,1733320244412,-501.80835873,0.00024657,7]
[344251335,1733320244422,-500.0,0.00024657,7]
[344251337,1733320244432,-649.70013568,0.00024657,7]
[344251339,1733320244442,-500.0,0.00024657,7]
[344251341,1733320244452,-518.10947355,0.00024657,7]
[344251343,1733320244463,-506.7884894,0.00024657,7]
[344251345,1733320244472,-692.34,0.00024657,7]
[344251347,1733320244482,-500.0,0.00024657,7]
[344251349,1733320244493,-500.0,0.00024657,7]
[344251351,1733320244503,-500.0,0.00024657,7]
[344251353,1733320244513,-500.0,0.00024657,7]
[344251355,1733320244523,-500.0,0.00024657,7]
[344251357,1733320244535,-500.0,0.00024657,7]
[344251359,1733320244545,-500.0,0.00024657,7]
[344251361,1733320244555,-500.0,0.00024657,7]
[344251363,1733320244564,-500.0,0.00024657,7]
[344251365,1733320244580,-500.0,0.00024657,7]
[344251368,1733320244590,-500.0,0.00024657,7]
[344251369,1733320244602,-500.0,0.00024657,7]
[344251372,1733320244614,-500.0,0.00024657,7]
[344251373,1733320244623,-500.0,0.00024657,7]
[344251375,1733320244633,-500.0,0.00024657,7]
[344251377,1733320244644,-500.0,0.00024657,7]
[344251379,1733320244657,-500.0,0.00024657,7]
[344251381,1733320244666,-500.0,0.00024657,7]
[344251383,1733320244677,-524.54938368,0.00024657,7]
[344251385,1733320244687,-228.73451143,0.00024657,7]
[344251387,1733320244696,-500.0,0.00024657,7]
[344251389,1733320244705,-166.64173312,0.00024657,7]
[344251391,1733320244715,-890.0,0.00024657,7]
[344251393,1733320244725,-500.0,0.00024657,7]
[344251395,1733320244735,-500.0,0.00024657,7]
[344251397,1733320244745,-693.55,0.00024657,7]
[344251399,1733320244755,-566.45252578,0.00024657,7]
[344251401,1733320244765,-500.0,0.00024657,7]
[344251403,1733320244775,-500.0,0.00024657,7]
[344251405,1733320244786,-500.0,0.00024657,7]
[344251407,1733320244795,-288.71816228,0.00024657,2]
[344251409,1733320244807,-500.0,0.00024657,7]
[344251411,1733320244816,-500.0,0.00024657,7]
[344251413,1733320244826,-1274.84,0.00024657,7]
[344251415,1733320244836,-500.0,0.00024657,7]
[344251417,1733320244845,-500.0,0.00024657,7]
[344251419,1733320244856,-500.0,0.00024657,7]
[344251421,1733320244865,-500.0,0.00024657,7]
[344251423,1733320244876,-500.0,0.00024657,7]
[344251425,1733320244885,-500.0,0.00024657,7]
[344251427,1733320244895,-500.0,0.00024657,7]
[344251428,1733320244906,-152.50136542,0.00024657,7]
[344251430,1733320244915,-500.0,0.00024657,7]
[344251432,1733320244925,-500.0,0.00024657,7]
[344251434,1733320244936,-500.0,0.00024657,7]
[344251436,1733320244946,-150.84544923,0.00024657,7]
[344251438,1733320244956,-500.0,0.00024657,7]
[344251440,1733320244966,-500.0,0.00024657,7]
[344251442,1733320244976,-496.12987692,0.00024657,7]
[344251444,1733320244985,-500.0,0.00024657,7]
[344251446,1733320244995,-500.0,0.00024657,7]
[344251447,1733320245005,-545.0,0.00024657,7]
[344251449,1733320245015,-500.0,0.00024657,7]
[344251451,1733320245026,-500.0,0.00024657,7]
[344251453,1733320245037,-601.47417593,0.00024657,7]
[344251455,1733320245047,-500.0,0.00024657,7]
[344251457,1733320245057,-500.0,0.00024657,7]
[344251459,1733320245068,-500.0,0.00024657,7]
[344251461,1733320245077,-500.0,0.00024657,7]
[344251463,1733320245086,-502.44537569,0.00024657,7]
[344251465,1733320245097,-438.08667777,0.00024657,7]
[344251467,1733320245112,-65.73323903,0.00024657,7]
[344251469,1733320245122,-500.0,0.00024657,7]
[344251471,1733320245131,-523.74291848,0.00024657,7]
[344251473,1733320245141,-472.72612497,0.00024657,7]
[344251616,1733320246677,-27.27387503,0.00024657,7]
[344251618,1733320246687,-500.0,0.00024657,7]
[344251620,1733320246696,-500.0,0.00024657,7]
[344251622,1733320246711,-500.0,0.00024657,7]
[344251624,1733320246720,-500.0,0.00024657,7]
[344251626,1733320246730,-500.0,0.00024657,7]
[344251628,1733320246739,-500.0,0.00024657,7]
[344251630,1733320246749,-500.0,0.00024657,7]
[344251632,1733320246758,-500.0,0.00024657,7]
[344251634,1733320246768,-4691.4,0.00024657,7]
[344251636,1733320246777,-500.0,0.00024657,7]
[344251637,1733320246786,-316.06807739,0.00024657,7]
[344251638,1733320246796,-500.0,0.00024657,7]
[344251640,1733320246805,-500.0,0.00024657,7]
[344251642,1733320246816,-500.0,0.00024657,7]
[344251644,1733320246825,-500.0,0.00024657,7]
[344251646,1733320246834,-73.67454008,0.00024657,7]
[344251648,1733320246847,-300.0,0.00024657,7]
[344254113,1733320378039,11649.9473413,0.00026,60]
[344254121,1733320878266,167.539871,0.00013973,2]
[344254125,1733321217106,-200.62107248,0.0002263,2]
[344254257,1733321438009,-218.4540567,0.00021708,2]
[344254259,1733321438019,-877.941018,0.00021765,2]
[344254261,1733321438029,-287.05492554,0.00021808,2]
[344254265,1733321438057,-422.52965476,0.00021808,2]
[344254267,1733321438067,-250.0,0.00022125,2]
[344254269,1733321438077,-1137.76563302,0.0002263,2]
[344254271,1733321438087,-300.0,0.00022636,2]
[344254273,1733321438096,-300.0,0.00022636,2]
[344254275,1733321438107,-5656.66704464,0.00022637,2]
[344254285,1733321438209,-1500.176257,0.00022637,2]
[344254288,1733321438221,-12225.0,0.00022637,2]
[344254290,1733321438234,-5518.15669836,0.00022637,2]
[344254292,1733321438245,-250.0,0.00022664,2]
[344254293,1733321438255,-167.023214,0.00022828,2]
[344254294,1733321438266,-1549.3522185,0.00022831,2]
[344254295,1733321438276,-204.4501861,0.00022856,2]
[344254296,1733321438286,-13972.8835005,0.00023034,2]
[344254297,1733321438295,-4716.94408142,0.00023075,2]
[344254299,1733321438305,-639.8408343,0.00023175,2]
[344254301,1733321438314,-200.838222,0.00023562,2]
[344254303,1733321438324,-1219.7977905,0.00024028,2]
[344254305,1733321438334,-153.0,0.00024078,2]
[344254307,1733321438343,-153.0,0.00024078,2]
[344254309,1733321438353,-174.0289541,0.00024178,2]
[344254311,1733321438363,-4716.94408136,0.00024227,2]
[344254313,1733321438372,-857.0529721,0.00024557,2]
[344254315,1733321438382,-420.0,0.00024582,2]
[344254317,1733321438392,-17245.15783344,0.00024657,2]
[344254319,1733321438402,-152.51034489,0.00024657,7]
[344254321,1733321438411,-573.4855369,0.00024657,7]
[344254323,1733321438421,-500.0,0.00024657,7]
[344254325,1733321438432,-500.0,0.00024657,7]
[344254327,1733321438445,-497.28265952,0.00024657,7]
[344254329,1733321438455,-243.76021112,0.00024657,7]
[344254331,1733321438464,-172.72549956,0.00024657,7]
[344254333,1733321438474,-571.41126639,0.00024657,7]
[344254335,1733321438484,-500.0,0.00024657,7]
[344254337,1733321438494,-500.0,0.00024657,7]
[344254339,1733321438504,-630.2445229,0.00024657,5]
[344254341,1733321438514,-500.0,0.00024657,7]
[344254343,1733321438524,-506.95723704,0.00024657,7]
[344254345,1733321438533,-500.0,0.00024657,7]
[344254347,1733321438543,-500.0,0.00024657,7]
[344254349,1733321438553,-500.0,0.00024657,7]
[344254351,1733321438563,-500.0,0.00024657,7]
[344254353,1733321438572,-500.0,0.00024657,7]
[344254355,1733321438582,-500.0,0.00024657,7]
[344254357,1733321438591,-500.0,0.00024657,7]
[344254359,1733321438601,-500.0,0.00024657,7]
[344254361,1733321438611,-505.18843285,0.00024657,7]
[344254363,1733321438621,-189.06578419,0.00024657,7]
[344254365,1733321438631,-500.0,0.00024657,7]
[344254367,1733321438642,-500.0,0.00024657,7]
[344254369,1733321438652,-500.0,0.00024657,7]
[344254371,1733321438662,-515.34704842,0.00024657,7]
[344254373,1733321438671,-517.53075397,0.00024657,7]
[344254375,1733321438681,-500.0,0.00024657,7]
[344254377,1733321438690,-500.0,0.00024657,7]
[344254379,1733321438703,-500.0,0.00024657,7]
[344254381,1733321438714,-518.56272872,0.00024657,7]
[344254383,1733321438723,-500.0,0.00024657,7]
[344254385,1733321438732,-354.08597798,0.00024657,7]
[344254387,1733321438742,-500.0,0.00024657,7]
[344254389,1733321438752,-500.0,0.00024657,7]
[344254391,1733321438762,-500.0,0.00024657,7]
[344254393,1733321438772,-500.0,0.00024657,7]
[344254395,1733321438781,-500.0,0.00024657,7]
[344254397,1733321438791,-72.6149538,0.00024657,7]
[344254445,1733321439814,-427.3850462,0.00024657,7]
[344254446,1733321439825,-81.44512632,0.00024657,7]
[344254447,1733321439963,-418.55487368,0.00024657,7]
[344254448,1733321439973,-500.0,0.00024657,7]
[344254449,1733321439984,-500.0,0.00024657,7]
[344254450,1733321439993,-505.92925538,0.00024657,7]
[344254451,1733321440113,-500.0,0.00024657,7]
[344254452,1733321440123,-500.0,0.00024657,7]
[344254453,1733321440134,-500.0,0.00024657,7]
[344254455,1733321440143,-500.0,0.00024657,7]
[344254457,1733321440153,-500.0,0.00024657,7]
[344254459,1733321440163,-662.0,0.00024657,7]
[344254461,1733321440172,-500.0,0.00024657,7]
[344254463,1733321440181,-852.92,0.00024657,7]
[344254465,1733321440191,-508.44680898,0.00024657,7]
[344254466,1733321440204,-500.0,0.00024657,7]
[344254467,1733321440214,-664.65,0.00024657,7]
[344254468,1733321440224,-517.15751298,0.00024657,7]
[344254469,1733321440234,-500.0,0.00024657,7]
[344254470,1733321440243,-510.20639974,0.00024657,7]
[344254471,1733321440253,-500.0,0.00024657,7]
[344254472,1733321440262,-372.91022837,0.00024657,7]
[344254474,1733321440271,-201.84513076,0.00024657,7]
[344254476,1733321440281,-500.0,0.00024657,7]
[344254477,1733321440290,-1221.72,0.00024657,7]
[344254478,1733321440300,-199.31349059,0.00024657,7]
[344254544,1733321443459,-300.68650941,0.00024657,7]
[344254546,1733321443468,-500.0,0.00024657,7]
[344254548,1733321443478,-500.0,0.00024657,7]
[344254550,1733321443487,-500.0,0.00024657,7]
[344254552,1733321443498,-500.0,0.00024657,7]
[344254554,1733321443508,-532.7554802,0.00024657,7]
[344254556,1733321443518,-500.0,0.00024657,7]
[344254558,1733321443527,-529.99364696,0.00024657,7]
[344254560,1733321443537,-438.47243988,0.00024657,7]
[344254562,1733321443546,-211.83393452,0.00024657,7]
[344254564,1733321443558,-288.16606548,0.00024657,7]
[344254566,1733321443568,-587.50265485,0.00024657,7]
[344254568,1733321443577,-500.0,0.00024657,7]
[344254570,1733321443587,-500.0,0.00024657,7]
[344254572,1733321443596,-500.0,0.00024657,7]
[344254574,1733321443606,-500.0,0.00024657,7]
[344254576,1733321443615,-500.0,0.00024657,7]
[344254578,1733321443625,-500.0,0.00024657,7]
[344254580,1733321443634,-522.29,0.00024657,7]
[344254582,1733321443644,-500.0,0.00024657,7]
[344254584,1733321443654,-500.0,0.00024657,7]
[344254586,1733321443663,-516.32864956,0.00024657,7]
[344254588,1733321443672,-298.0781042,0.00024657,7]
[344254590,1733321443682,-500.0,0.00024657,7]
[344254592,1733321443691,-500.0,0.00024657,7]
[344254594,1733321443706,-515.1755,0.00024657,7]
[344254596,1733321443715,-515.1755,0.00024657,7]
[344254598,1733321443724,-500.0,0.00024657,7]
[344254600,1733321443733,-500.0,0.00024657,7]
[344254602,1733321443743,-169.070178,0.00024657,7]
[344254604,1733321443752,-500.0,0.00024657,7]
[344254606,1733321443761,-500.0,0.00024657,7]
[344254607,1733321443770,-500.0,0.00024657,7]
[344254609,1733321443779,-500.0,0.00024657,7]
[344254611,1733321443788,-161.1170063,0.00024657,7]
[344254613,1733321443797,-500.0,0.00024657,7]
[344254615,1733321443807,-203.10342572,0.00024657,7]
[344254769,1733321445821,-265.47591415,0.00024657,7]
[344254774,1733321445862,-41.16552916,0.00024657,7]
[344254776,1733321445872,-500.0,0.00024657,7]
[344254778,1733321445881,-500.0,0.00024657,7]
[344254780,1733321445890,-154.88448084,0.00024657,7]
[344254783,1733321445903,-351.44183944,0.00024657,7]
[344254785,1733321445914,-545.81943234,0.00024657,7]
[344254787,1733321445923,-500.0,0.00024657,7]
[344254788,1733321445936,-340.73376883,0.00024657,7]
[344254790,1733321445946,-520.57417594,0.00024657,7]
[344254792,1733321445958,-500.0,0.00024657,7]
[344254794,1733321445967,-500.0,0.00024657,7]
[344254796,1733321445977,-505.88616946,0.00024657,7]
[344254798,1733321445986,-434.59815119,0.00024657,7]
[344254801,1733321445996,-500.0,0.00024657,7]
[344254804,1733321446004,-500.0,0.00024657,7]
[344254806,1733321446013,-500.0,0.00024657,7]
[344254809,1733321446023,-503.33991076,0.00024657,7]
[344254812,1733321446033,-500.0,0.00024657,7]
[344254814,1733321446042,-500.0,0.00024657,7]
[344254816,1733321446051,-500.0,0.00024657,7]
[344254818,1733321446060,-500.0,0.00024657,7]
[344254820,1733321446069,-500.0,0.00024657,7]
[344254822,1733321446078,-500.0,0.00024657,7]
[344254824,1733321446088,-357.70655204,0.00024657,7]
[344254829,1733321446119,-142.29344796,0.00024657,7]
[344254831,1733321446130,-500.0,0.00024657,7]
[344254832,1733321446140,-4683.99,0.00024657,7]
[344254835,1733321446151,-500.0,0.00024657,7]
[344254837,1733321446161,-500.0,0.00024657,7]
[344254839,1733321446170,-500.0,0.00024657,7]
[344254841,1733321446180,-500.0,0.00024657,7]
[344254843,1733321446190,-387.641405,0.00024657,7]
[344254845,1733321446202,-500.0,0.00024657,7]
[344254847,1733321446212,-500.0,0.00024657,7]
[344254849,1733321446222,-243.21140041,0.00024657,7]
[344254851,1733321446231,-502.0617305,0.00024657,7]
[344254853,1733321446241,-500.0,0.00024657,7]
[344254855,1733321446251,-500.0,0.00024657,7]
[344254857,1733321446260,-500.0,0.00024657,7]
[344254859,1733321446270,-500.0,0.00024657,7]
[344254861,1733321446280,-500.0,0.00024657,7]
[344254863,1733321446289,-500.0,0.00024657,7]
[344254865,1733321446299,-500.0,0.00024657,7]
[344254866,1733321446309,-500.0,0.00024657,7]
[344254867,1733321446318,-510.41383853,0.00024657,7]
[344254868,1733321446327,-500.0,0.00024657,7]
[344254869,1733321446337,-500.0,0.00024657,7]
[344254870,1733321446347,-503.70771313,0.00024657,7]
[344254872,1733321446356,-500.0,0.00024657,7]
[344254874,1733321446366,-500.0,0.00024657,7]
[344254876,1733321446375,-500.0,0.00024657,7]
[344254878,1733321446385,-507.71040761,0.00024657,7]
[344254880,1733321446395,-500.0,0.00024657,7]
[344254881,1733321446404,-225.632983,0.00024657,7]
[344254882,1733321446414,-729.25,0.00024657,7]
[344254883,1733321446424,-225.632983,0.00024657,7]
[344254884,1733321446434,-510.51951927,0.00024657,7]
[344254885,1733321446443,-500.0,0.00024657,7]
[344254886,1733321446455,-327.15338791,0.00024657,7]
[344254887,1733321446465,-500.0,0.00024657,7]
[344254888,1733321446475,-515.16311243,0.00024657,7]
[344254889,1733321446484,-500.0,0.00024657,7]
[344254890,1733321446493,-470.50528244,0.00024657,7]
[344255092,1733321557369,166.874889,0.00013973,2]
[344255094,1733321684735,-300.0,0.0002393,2]
[344255095,1733321684759,-300.0,0.0002393,2]
[344255096,1733321684784,-24900.0,0.00023931,2]
[344255097,1733321684809,-500.0,0.00024656,2]
[344255098,1733321684832,-163.3537648,0.00024656,2]
[344255099,1733321684855,-398.19803373,0.00024656,2]
[344255100,1733321684877,-29.49471756,0.00024657,7]
[344255101,1733321684900,-500.0,0.00024657,7]
[344255102,1733321684922,-500.0,0.00024657,7]
[344255103,1733321684945,-500.0,0.00024657,7]
[344255104,1733321684966,-500.0,0.00024657,7]
[344255105,1733321684987,-500.0,0.00024657,7]
[344255106,1733321685011,-500.0,0.00024657,7]
[344255107,1733321685032,-200.0,0.00024657,7]
[344255108,1733321685054,-500.0,0.00024657,7]
[344255109,1733321685076,-500.0,0.00024657,7]
[344255110,1733321685100,-500.0,0.00024657,7]
[344255111,1733321685122,-502.11739935,0.00024657,7]
[344255112,1733321685144,-500.0,0.00024657,7]
[344255113,1733321685166,-163.263565,0.00024657,7]